fUST/lending_fUST_20260118
["ID","MTS","AMOUNT","RATE_DAILY","PERIOD"]
[402437733,1768677087434,-500.0,0.00017808,3]
[402437734,1768677087443,-500.0,0.00017808,3]
[402437735,1768677087452,-500.0,0.00017808,3]
[402437736,1768677087463,-500.0,0.00017808,3]
[402437737,1768677087472,-860.12,0.00017808,3]
[402437738,1768677087482,-484.52529222,0.00017808,3]
[402437739,1768677087492,-1611.57,0.00017808,3]
[402437740,1768677087501,-882.95,0.00017808,3]
[402437741,1768677087511,-500.0,0.00017808,3]
[402437742,1768677087521,-729.29,0.00017808,3]
[402437743,1768677087530,-500.0,0.00017808,3]
[402437744,1768677087540,-1300.92,0.00017808,3]
[402437745,1768677087550,-500.0,0.00017808,3]
[402437746,1768677087559,-500.0,0.00017808,3]
[402437747,1768677087568,-500.0,0.00017808,3]
[402437748,1768677087578,-500.0,0.00017808,3]
[402437749,1768677087591,-500.0,0.00017808,3]
[402437750,1768677087600,-917.63,0.00017808,3]
[402437751,1768677087610,-500.0,0.00017808,3]
[402437752,1768677087619,-1000.0,0.00017808,2]
[402437753,1768677087629,-500.0,0.00017808,3]
[402437754,1768677087638,-500.0,0.00017808,3]
[402437755,1768677087647,-547.52,0.00017808,3]
[402437756,1768677087657,-500.0,0.00017808,3]
[402437757,1768677087666,-1231.73,0.00017808,3]
[402437758,1768677087676,-821.19,0.00017808,3]
[402437759,1768677087686,-500.0,0.00017808,3]
[402437760,1768677087696,-500.0,0.00017808,3]
[402437761,1768677087705,-500.0,0.00017808,3]
[402437762,1768677087715,-1266.79,0.00017808,3]
[402437763,1768677087724,-520.45,0.00017808,3]
[402437764,1768677087733,-522.28,0.00017808,3]
[402437765,1768677087742,-610.79,0.00017808,3]
[402437766,1768677087752,-500.0,0.00017808,3]
[402437767,1768677087761,-654.08,0.00017808,3]
[402437768,1768677087771,-571.51,0.00017808,3]
[402437769,1768677087781,-500.0,0.00017808,3]
[402437770,1768677087790,-500.0,0.00017808,3]
[402437771,1768677087800,-500.0,0.00017808,3]
[402437772,1768677087809,-500.0,0.00017808,3]
[402437773,1768677087819,-768.76,0.00017808,3]
[402437774,1768677087828,-500.0,0.00017808,3]
[402437775,1768677087837,-788.51,0.00017808,3]
[402437776,1768677087847,-500.0,0.00017808,3]
[402437777,1768677087857,-500.0,0.00017808,3]
[402437778,1768677087866,-500.0,0.00017808,3]
[402437779,1768677087875,-500.0,0.00017808,3]
[402437780,1768677087885,-532.99,0.00017808,3]
[402437781,1768677087895,-500.0,0.00017808,3]
[402437782,1768677087904,-500.0,0.00017808,3]
[402437783,1768677087914,-500.0,0.00017808,3]
[402437784,1768677087923,-500.0,0.00017808,3]
[402437785,1768677087932,-490.09113196,0.00017808,3]
[402437786,1768677087942,-609.57,0.00017808,3]
[402437787,1768677087951,-500.0,0.00017808,3]
[402437788,1768677087960,-982.5,0.00017808,3]
[402437789,1768677087969,-500.0,0.00017808,3]
[402437790,1768677087979,-711.95,0.00017808,3]
[402437791,1768677087988,-500.0,0.00017808,3]
[402437792,1768677087997,-500.0,0.00017808,3]
[402437793,1768677088006,-1220.69,0.00017808,3]
[402437794,1768677088015,-524.68,0.00017808,3]
[402437795,1768677088024,-251.11469402,0.00017808,3]
[402437796,1768677088034,-500.0,0.00017808,3]
[402437797,1768677088043,-1421.24,0.00017808,3]
[402437798,1768677088052,-500.0,0.00017808,3]
[402437799,1768677088062,-500.0,0.00017808,3]
[402437800,1768677088071,-698.89,0.00017808,3]
[402437801,1768677088081,-521.62,0.00017808,3]
[402437802,1768677088091,-500.0,0.00017808,3]
[402437803,1768677088100,-500.0,0.00017808,3]
[402437804,1768677088109,-500.0,0.00017808,3]
[402437805,1768677088118,-1628.67,0.00017808,3]
[402437806,1768677088127,-714.42,0.00017808,3]
[402437807,1768677088136,-500.0,0.00017808,3]
[402437808,1768677088145,-500.0,0.00017808,3]
[402437809,1768677088155,-769.6,0.00017808,3]
[402437810,1768677088164,-500.0,0.00017808,3]
[402437811,1768677088173,-882.36,0.00017808,3]
[402437812,1768677088182,-937.01,0.00017808,3]
[402437813,1768677088191,-1071.96,0.00017808,3]
[402437814,1768677088201,-500.0,0.00017808,3]
[402437815,1768677088211,-2532.74,0.00017808,3]
[402437816,1768677088220,-608.0,0.00017808,3]
[402437817,1768677088229,-945.0,0.00017808,3]
[402437818,1768677088239,-500.0,0.00017808,3]
[402437819,1768677088247,-500.0,0.00017808,3]
[402437820,1768677088261,-500.0,0.00017808,3]
[402437821,1768677088270,-500.0,0.00017808,3]
[402437822,1768677088279,-500.0,0.00017808,3]
[402437823,1768677088288,-724.98,0.00017808,3]
[402437824,1768677088299,-500.0,0.00017808,3]
[402437825,1768677088307,-497.71228405,0.00017808,3]
[402437826,1768677088317,-1226.14,0.00017808,3]
[402437827,1768677088326,-500.0,0.00017808,3]
[402437828,1768677088338,-1192.38,0.00017808,3]
[402437829,1768677088348,-500.0,0.00017808,3]
[402437830,1768677088357,-1440.02,0.00017808,3]
[402437831,1768677088367,-500.0,0.00017808,3]
[402437832,1768677088376,-500.0,0.00017808,3]
[402437833,1768677088386,-548.54460161,0.00017808,3]
[402437834,1768677088397,-563.95,0.00017808,3]
[402437835,1768677088407,-500.0,0.00017808,3]
[402437836,1768677088417,-888.73,0.00017808,3]
[402437837,1768677088427,-1322.85,0.00017808,3]
[402437838,1768677088436,-500.0,0.00017808,3]
[402437839,1768677088445,-577.24,0.00017808,3]
[402437840,1768677088455,-500.0,0.00017808,3]
[402437841,1768677088464,-500.0,0.00017808,3]
[402437842,1768677088474,-593.62,0.00017808,3]
[402437843,1768677088483,-558.99,0.00017808,3]
[402437844,1768677088493,-328.66179956,0.00017808,3]
[402437845,1768677088503,-500.0,0.00017808,3]
[402437846,1768677088513,-943.41,0.00017808,3]
[402437847,1768677088522,-500.0,0.00017808,3]
[402437848,1768677088533,-507.13,0.00017808,3]
[402437849,1768677088542,-878.96,0.00017808,3]
[402437850,1768677088552,-500.0,0.00017808,3]
[402437851,1768677088562,-500.0,0.00017808,3]
[402437852,1768677088570,-595.67,0.00017808,3]
[402437853,1768677088578,-500.0,0.00017808,3]
[402437854,1768677088586,-500.0,0.00017808,3]
[402437855,1768677088595,-960.34,0.00017808,3]
[402437856,1768677088604,-500.0,0.00017808,3]
[402437857,1768677088614,-764.35,0.00017808,3]
[402437858,1768677088623,-500.0,0.00017808,3]
[402437859,1768677088632,-1333.16,0.00017808,3]
[402437860,1768677088641,-500.0,0.00017808,3]
[402437861,1768677088651,-500.0,0.00017808,3]
[402437862,1768677088660,-500.0,0.00017808,3]
[402437863,1768677088669,-220.42501894,0.00017808,3]
[402437864,1768677088679,-1834.32,0.00017808,3]
[402437865,1768677088687,-1717.69,0.00017808,3]
[402437866,1768677088697,-968.64,0.00017808,3]
[402437867,1768677088706,-1272.0,0.00017808,3]
[402437868,1768677088715,-500.0,0.00017808,3]
[402437869,1768677088724,-500.0,0.00017808,3]
[402437870,1768677088734,-1630.85,0.00017808,3]
[402437871,1768677088743,-1384.14,0.00017808,3]
[402437872,1768677088753,-195.7,0.00017808,2]
[402437873,1768677088762,-680.46,0.00017808,3]
[402437874,1768677088771,-500.0,0.00017808,3]
[402437875,1768677088780,-668.86,0.00017808,3]
[402437876,1768677088789,-500.0,0.00017808,3]
[402437877,1768677088798,-500.0,0.00017808,3]
[402437878,1768677088807,-500.0,0.00017808,3]
[402437879,1768677088817,-500.0,0.00017808,3]
[402437880,1768677088826,-500.0,0.00017808,3]
[402437881,1768677088835,-1316.96,0.00017808,3]
[402437882,1768677088844,-500.0,0.00017808,3]
[402437883,1768677088854,-500.0,0.00017808,3]
[402437884,1768677088863,-500.0,0.00017808,3]
[402437885,1768677088873,-500.0,0.00017808,3]
[402437886,1768677088882,-706.96,0.00017808,3]
[402437887,1768677088892,-500.0,0.00017808,3]
[402437888,1768677088901,-500.0,0.00017808,3]
[402437889,1768677088911,-500.0,0.00017808,3]
[402437890,1768677088920,-500.0,0.00017808,3]
[402437891,1768677088930,-1200.0,0.00017808,2]
[402437892,1768677088939,-895.54,0.00017808,3]
[402437893,1768677088949,-693.13,0.00017808,3]
[402437894,1768677088959,-1368.68,0.00017808,3]
[402437895,1768677088970,-500.0,0.00017808,3]
[402437896,1768677088980,-500.0,0.00017808,3]
[402437897,1768677088989,-1071.26,0.00017808,3]
[402437898,1768677088998,-854.25,0.00017808,3]
[402437899,1768677089008,-822.61,0.00017808,3]
[402437900,1768677089017,-1040.52,0.00017808,3]
[402437901,1768677089027,-500.0,0.00017808,3]
[402437902,1768677089037,-500.0,0.00017808,3]
[402437903,1768677089048,-1915.54,0.00017808,3]
[402437904,1768677089059,-591.65,0.00017808,3]
[402437905,1768677089068,-1390.83,0.00017808,3]
[402437906,1768677089079,-500.0,0.00017808,3]
[402437907,1768677089089,-500.0,0.00017808,3]
[402437908,1768677089099,-500.0,0.00017808,3]
[402437909,1768677089108,-1757.22,0.00017808,3]
[402437910,1768677089117,-500.0,0.00017808,3]
[402437911,1768677089131,-500.0,0.00017808,3]
[402437912,1768677089140,-500.0,0.00017808,3]
[402437913,1768677089150,-838.7,0.00017808,3]
[402437914,1768677089159,-500.0,0.00017808,3]
[402437915,1768677089168,-500.0,0.00017808,3]
[402437916,1768677089178,-777.41,0.00017808,3]
[402437917,1768677089187,-1043.16,0.00017808,3]
[402437918,1768677089196,-500.0,0.00017808,3]
[402437919,1768677089205,-1407.98,0.00017808,3]
[402437920,1768677089214,-505.87,0.00017808,3]
[402437921,1768677089223,-500.0,0.00017808,3]
[402437922,1768677089233,-500.0,0.00017808,3]
[402437923,1768677089242,-500.0,0.00017808,3]
[402437924,1768677089252,-500.0,0.00017808,3]
[402437925,1768677089266,-739.58,0.00017808,3]
[402437926,1768677089275,-856.56,0.00017808,3]
[402437927,1768677089285,-500.0,0.00017808,3]
[402437928,1768677089295,-500.0,0.00017808,3]
[402437929,1768677089306,-1416.3,0.00017808,3]
[402437930,1768677089315,-500.0,0.00017808,3]
[402437931,1768677089324,-500.0,0.00017808,3]
[402437932,1768677089334,-500.0,0.00017808,3]
[402437933,1768677089344,-500.0,0.00017808,3]
[402437934,1768677089355,-500.0,0.00017808,3]
[402437935,1768677089366,-1545.1,0.00017808,3]
[402437936,1768677089375,-513.29,0.00017808,3]
[402437937,1768677089384,-500.0,0.00017808,3]
[402437938,1768677089393,-1494.01,0.00017808,3]
[402437939,1768677089403,-1051.96,0.00017808,3]
[402437940,1768677089412,-504.64,0.00017808,3]
[402437941,1768677089422,-500.0,0.00017808,3]
[402437942,1768677089431,-500.0,0.00017808,3]
[402437943,1768677089440,-536.65897098,0.00017808,3]
[402437944,1768677089450,-741.79,0.00017808,3]
[402437945,1768677089460,-500.0,0.00017808,3]
[402437946,1768677089470,-709.42,0.00017808,3]
[402437947,1768677089480,-500.0,0.00017808,3]
[402437948,1768677089489,-500.0,0.00017808,3]
[402437949,1768677089499,-500.0,0.00017808,3]
[402437950,1768677089507,-1957.51,0.00017808,3]
[402437951,1768677089516,-206.13170951,0.00017808,3]
[402437952,1768677089525,-1860.69,0.00017808,3]
[402437953,1768677089535,-627.94,0.00017808,3]
[402437954,1768677089544,-762.35,0.00017808,3]
[402437955,1768677089554,-500.0,0.00017808,3]
[402437956,1768677089564,-408.02411447,0.00017808,3]
[402437957,1768677089574,-500.0,0.00017808,3]
[402437958,1768677089583,-500.0,0.00017808,3]
[402437959,1768677089592,-505.92,0.00017808,3]
[402437960,1768677089602,-898.93,0.00017808,3]
[402437961,1768677089611,-500.0,0.00017808,3]
[402437962,1768677089620,-545.77,0.00017808,3]
[402437963,1768677089629,-500.0,0.00017808,3]
[402437964,1768677089639,-1944.24,0.00017808,3]
[402437965,1768677089649,-500.0,0.00017808,3]
[402437966,1768677089658,-500.0,0.00017808,3]
[402437967,1768677089667,-500.0,0.00017808,3]
[402437968,1768677089676,-1502.15,0.00017808,3]
[402437969,1768677089685,-500.0,0.00017808,3]
[402437970,1768677089695,-1665.75,0.00017808,3]
[402437971,1768677089704,-500.0,0.00017808,3]
[402437972,1768677089713,-500.0,0.00017808,3]
[402437973,1768677089723,-1236.21,0.00017808,3]
[402437974,1768677089732,-624.16,0.00017808,3]
[402437975,1768677089910,-2175.59,0.00017808,3]
[402437976,1768677089919,-500.0,0.00017808,3]
[402437977,1768677089929,-500.0,0.00017808,3]
[402437978,1768677089938,-500.0,0.00017808,3]
[402437979,1768677089947,-500.0,0.00017808,3]
[402437980,1768677089958,-500.0,0.00017808,3]
[402437981,1768677089967,-500.0,0.00017808,3]
[402437982,1768677089976,-500.0,0.00017808,3]
[402437983,1768677089985,-500.0,0.00017808,3]
[402437984,1768677089994,-500.0,0.00017808,3]
[402437985,1768677090003,-500.0,0.00017808,3]
[402437986,1768677090012,-500.0,0.00017808,3]
[402437987,1768677090022,-700.37,0.00017808,3]
[402437988,1768677090031,-2551.07,0.00017808,3]
[402437989,1768677090040,-621.29598782,0.00017808,3]
[402437990,1768677090050,-500.0,0.00017808,3]
[402437991,1768677090059,-500.0,0.00017808,3]
[402437992,1768677090069,-1022.84,0.00017808,3]
[402437993,1768677090078,-500.0,0.00017808,3]
[402437994,1768677090088,-500.0,0.00017808,3]
[402437995,1768677090097,-500.0,0.00017808,3]
[402437996,1768677090107,-1319.94,0.00017808,3]
[402437997,1768677090116,-500.0,0.00017808,3]
[402437998,1768677090125,-503.64,0.00017808,3]
[402437999,1768677090134,-813.92,0.00017808,3]
[402438000,1768677090144,-806.92,0.00017808,3]
[402438001,1768677090153,-861.36,0.00017808,3]
[402438002,1768677090162,-500.0,0.00017808,3]
[402438003,1768677090171,-748.9,0.00017808,3]
[402438004,1768677090181,-2453.42,0.00017808,3]
[402438005,1768677090190,-590.49,0.00017808,3]
[402438006,1768677090199,-511.97,0.00017808,3]
[402438007,1768677090208,-500.0,0.00017808,3]
[402438008,1768677090218,-1552.9,0.00017808,3]
[402438009,1768677090228,-1695.64,0.00017808,3]
[402438010,1768677090237,-561.4,0.00017808,3]
[402438011,1768677090247,-500.0,0.00017808,3]
[402438012,1768677090261,-1568.81,0.00017808,3]
[402438013,1768677090270,-1121.41,0.00017808,3]
[402438014,1768677090279,-543.12,0.00017808,3]
[402438015,1768677090288,-1094.15,0.00017808,3]
[402438016,1768677090297,-758.46,0.00017808,3]
[402438017,1768677090307,-500.0,0.00017808,3]
[402438018,1768677090316,-500.0,0.00017808,3]
[402438019,1768677090326,-1285.11,0.00017808,3]
[402438020,1768677090335,-917.14,0.00017808,3]
[402438021,1768677090345,-500.0,0.00017808,3]
[402438022,1768677090355,-948.88,0.00017808,3]
[402438023,1768677090364,-500.0,0.00017808,3]
[402438024,1768677090374,-500.0,0.00017808,3]
[402438025,1768677090383,-714.16,0.00017808,3]
[402438026,1768677090394,-1173.22,0.00017808,3]
[402438027,1768677090405,-520.72,0.00017808,3]
[402438028,1768677090414,-660.42,0.00017808,3]
[402438029,1768677090423,-500.0,0.00017808,3]
[402438030,1768677090432,-500.0,0.00017808,3]
[402438031,1768677090442,-798.37,0.00017808,3]
[402438032,1768677090451,-876.59,0.00017808,3]
[402438033,1768677090461,-500.0,0.00017808,3]
[402438034,1768677090470,-500.0,0.00017808,3]
[402438035,1768677090479,-500.0,0.00017808,3]
[402438036,1768677090487,-509.49,0.00017808,3]
[402438037,1768677090496,-500.0,0.00017808,3]
[402438038,1768677090504,-500.0,0.00017808,3]
[402438039,1768677090513,-2552.27,0.00017808,3]
[402438040,1768677090522,-500.0,0.00017808,3]
[402438041,1768677090531,-609.02,0.00017808,3]
[402438042,1768677090540,-844.39,0.00017808,3]
[402438043,1768677090549,-548.99,0.00017808,3]
[402438044,1768677090558,-1639.55,0.00017808,3]
[402438045,1768677090567,-578.12,0.00017808,3]
[402438046,1768677090577,-500.0,0.00017808,3]
[402438047,1768677090586,-437.89239693,0.00017808,3]
[402438048,1768677090597,-500.0,0.00017808,3]
[402438049,1768677090607,-1023.93,0.00017808,3]
[402438050,1768677090616,-500.0,0.00017808,3]
[402438051,1768677090626,-1911.06,0.00017808,3]
[402438052,1768677090635,-500.0,0.00017808,3]
[402438053,1768677090645,-500.0,0.00017808,3]
[402438054,1768677090655,-500.0,0.00017808,3]
[402438055,1768677090664,-936.53,0.00017808,3]
[402438056,1768677090673,-1025.38,0.00017808,3]
[402438057,1768677090682,-500.0,0.00017808,3]
[402438058,1768677090691,-575.62,0.00017808,3]
[402438059,1768677090701,-1305.86,0.00017808,3]
[402438060,1768677090710,-500.0,0.00017808,3]
[402438061,1768677090719,-500.0,0.00017808,3]
[402438062,1768677090728,-1103.35,0.00017808,3]
[402438063,1768677090738,-3403.79,0.00017808,3]
[402438064,1768677090747,-500.0,0.00017808,3]
[402438065,1768677090757,-978.92,0.00017808,3]
[402438066,1768677090767,-500.0,0.00017808,3]
[402438067,1768677090776,-1480.53,0.00017808,3]
[402438068,1768677090786,-552.87,0.00017808,3]
[402438069,1768677090796,-500.0,0.00017808,3]
[402438070,1768677090805,-500.0,0.00017808,3]
[402438071,1768677090815,-860.55,0.00017808,3]
[402438072,1768677090824,-598.38,0.00017808,3]
[402438073,1768677090834,-1148.17,0.00017808,3]
[402438074,1768677090843,-2015.39,0.00017808,3]
[402438075,1768677090853,-500.0,0.00017808,3]
[402438076,1768677090863,-674.52,0.00017808,3]
[402438077,1768677090874,-636.57,0.00017808,3]
[402438078,1768677090883,-1399.24,0.00017808,3]
[402438079,1768677090892,-1168.23,0.00017808,3]
[402438080,1768677090902,-500.0,0.00017808,3]
[402438081,1768677090912,-1114.84,0.00017808,3]
[402438082,1768677090922,-2897.63,0.00017808,3]
[402438083,1768677090931,-1569.6,0.00017808,3]
[402438084,1768677090941,-597.82,0.00017808,3]
[402438085,1768677090951,-644.89,0.00017808,3]
[402438086,1768677090961,-1380.77,0.00017808,3]
[402438087,1768677090971,-539.32,0.00017808,3]
[402438088,1768677090980,-1474.73,0.00017808,3]
[402438089,1768677090990,-500.0,0.00017808,2]
[402438090,1768677091000,-1321.15,0.00017808,3]
[402438091,1768677091009,-500.0,0.00017808,3]
[402438092,1768677091018,-539.86,0.00017808,3]
[402438093,1768677091027,-537.6,0.00017808,3]
[402438094,1768677091035,-500.0,0.00017808,3]
[402438095,1768677091044,-1249.71,0.00017808,3]
[402438096,1768677091054,-500.0,0.00017808,3]
[402438097,1768677091064,-500.0,0.00017808,3]
[402438098,1768677091074,-500.0,0.00017808,3]
[402438099,1768677091083,-1505.84,0.00017808,3]
[402438100,1768677091093,-500.0,0.00017808,3]
[402438101,1768677091103,-500.0,0.00017808,2]
[402438102,1768677091113,-500.0,0.00017808,3]
[402438103,1768677091122,-14376.21,0.00017808,3]
[402438104,1768677091132,-500.0,0.00017808,2]
[402438105,1768677091141,-500.0,0.00017808,2]
[402438106,1768677091150,-500.0,0.00017863,2]
[402438107,1768677091161,-729.0,0.00017916,2]
[402438108,1768677091171,-350.446029,0.00017916,7]
[402438109,1768677091181,-500.0,0.00017973,2]
[402438110,1768677091190,-3608.47613542,0.0001798,2]
[402438111,1768677091200,-3795.0,0.00018,2]
[402438112,1768677091210,-152129.62492152,0.00018,2]
[402438113,1768677091219,-28166.53084422,0.00018,5]
[402438114,1768677091229,-500.33991656,0.00018,2]
[402438115,1768677091238,-1000.0,0.00018,2]
[402438116,1768677091247,-12570.98777,0.00018,7]
[402438117,1768677091261,-1000.0,0.00018,2]
[402438118,1768677091271,-500.0,0.00018001,2]
[402438119,1768677091280,-521.0,0.00018024,5]
[402438120,1768677091289,-1234.0,0.00018024,5]
[402438121,1768677091299,-729.0,0.00018043,2]
[402438122,1768677091308,-207.28,0.00018062,2]
[402438123,1768677091319,-4741.1240749,0.0001808,2]
[402438124,1768677091330,-155.0,0.00018081,2]
[402438125,1768677091341,-1562.62825924,0.00018082,50]
[402438126,1768677091350,-674.95746037,0.00018082,3]
[402438127,1768677091360,-500.0,0.00018082,3]
[402438128,1768677091369,-500.0,0.00018082,3]
[402438129,1768677091379,-500.0,0.00018082,3]
[402438130,1768677091388,-500.0,0.00018082,3]
[402438131,1768677091397,-500.0,0.00018082,3]
[402438132,1768677091407,-500.0,0.00018082,3]
[402438133,1768677091416,-212.75124021,0.00018082,3]
[402438134,1768677091425,-500.0,0.00018082,3]
[402438135,1768677091435,-500.0,0.00018082,3]
[402438136,1768677091445,-500.0,0.00018082,3]
[402438137,1768677091455,-819.06,0.00018082,3]
[402438138,1768677091464,-1100.98,0.00018082,3]
[402438139,1768677091475,-500.0,0.00018082,3]
[402438140,1768677091484,-1054.14,0.00018082,3]
[402438141,1768677091494,-500.0,0.00018082,3]
[402438142,1768677091504,-500.0,0.00018082,3]
[402438143,1768677091514,-500.0,0.00018082,3]
[402438144,1768677091523,-756.12,0.00018082,3]
[402438145,1768677091532,-500.0,0.00018082,3]
[402438146,1768677091542,-500.0,0.00018082,3]
[402438147,1768677091552,-654.72,0.00018082,3]
[402438148,1768677091561,-541.19,0.00018082,3]
[402438149,1768677091570,-995.34,0.00018082,3]
[402438150,1768677091579,-500.0,0.00018082,3]
[402438151,1768677091588,-500.0,0.00018082,3]
[402438152,1768677091597,-1414.85,0.00018082,3]
[402438153,1768677091607,-500.0,0.00018082,3]
[402438154,1768677091616,-500.0,0.00018082,3]
[402438155,1768677091626,-500.0,0.00018082,3]
[402438156,1768677091635,-500.0,0.00018082,3]
[402438157,1768677091645,-500.0,0.00018082,3]
[402438158,1768677091654,-500.0,0.00018082,3]
[402438159,1768677091663,-500.0,0.00018082,3]
[402438160,1768677091672,-500.0,0.00018082,3]
[402438161,1768677091682,-500.0,0.00018082,3]
[402438162,1768677091692,-619.42,0.00018082,3]
[402438163,1768677091701,-500.0,0.00018082,3]
[402438164,1768677091711,-278.05841257,0.00018082,3]
[402438165,1768677091720,-500.0,0.00018082,3]
[402438166,1768677091730,-505.08,0.00018082,3]
[402438167,1768677091739,-500.0,0.00018082,3]
[402438168,1768677091749,-500.0,0.00018082,3]
[402438169,1768677091758,-500.0,0.00018082,3]
[402438170,1768677091767,-530.75,0.00018082,3]
[402438171,1768677091776,-814.58,0.00018082,3]
[402438172,1768677091786,-500.0,0.00018082,3]
[402438173,1768677091795,-1103.53,0.00018082,3]
[402438174,1768677091804,-863.13,0.00018082,3]
[402438175,1768677091814,-512.66871378,0.00018082,3]
[402438176,1768677091823,-500.0,0.00018082,3]
[402438177,1768677091833,-688.71,0.00018082,3]
[402438178,1768677091842,-500.0,0.00018082,3]
[402438179,1768677091851,-653.28,0.00018082,3]
[402438180,1768677091860,-500.0,0.00018082,3]
[402438181,1768677091870,-213.48291508,0.00018082,3]
[402438182,1768677091879,-526.42,0.00018082,3]
[402438183,1768677091889,-500.0,0.00018082,3]
[402438184,1768677091898,-500.0,0.00018082,3]
[402438185,1768677091907,-821.72,0.00018082,3]
[402438186,1768677091916,-500.0,0.00018082,3]
[402438187,1768677091925,-1355.32,0.00018082,3]
[402438188,1768677091935,-500.0,0.00018082,3]
[402438189,1768677091944,-500.0,0.00018082,3]
[402438190,1768677091953,-526.18,0.00018082,3]
[402438191,1768677091963,-859.78,0.00018082,3]
[402438192,1768677091972,-500.0,0.00018082,3]
[402438193,1768677091982,-500.0,0.00018082,3]
[402438194,1768677091992,-499.44798613,0.00018082,3]
[402438195,1768677092001,-500.0,0.00018082,3]
[402438196,1768677092010,-500.0,0.00018082,3]
[402438197,1768677092019,-796.76,0.00018082,3]
[402438198,1768677092029,-947.02,0.00018082,3]
[402438199,1768677092039,-500.0,0.00018082,3]
[402438200,1768677092048,-500.0,0.00018082,3]
[402438201,1768677092057,-1676.18,0.00018082,3]
[402438202,1768677092067,-500.0,0.00018082,3]
[402438203,1768677092076,-500.0,0.00018082,3]
[402438204,1768677092086,-1422.11,0.00018082,3]
[402438205,1768677092095,-700.16,0.00018082,3]
[402438206,1768677092105,-1271.86,0.00018082,3]
[402438207,1768677092115,-500.0,0.00018082,3]
[402438208,1768677092125,-500.0,0.00018082,3]
[402438209,1768677092135,-500.0,0.00018082,3]
[402438210,1768677092144,-555.26,0.00018082,3]
[402438211,1768677092153,-1185.41,0.00018082,3]
[402438212,1768677092163,-972.25,0.00018082,3]
[402438213,1768677092172,-500.0,0.00018082,3]
[402438214,1768677092182,-500.0,0.00018082,3]
[402438215,1768677092192,-500.0,0.00018082,3]
[402438216,1768677092201,-1029.8,0.00018082,3]
[402438217,1768677092211,-500.0,0.00018082,3]
[402438218,1768677092221,-1204.44,0.00018082,3]
[402438219,1768677092232,-500.0,0.00018082,3]
[402438220,1768677092241,-348.04789676,0.00018082,3]
[402438221,1768677092252,-778.71,0.00018082,3]
[402438222,1768677092265,-1032.1,0.00018082,3]
[402438223,1768677092275,-500.0,0.00018082,3]
[402438224,1768677092284,-500.0,0.00018082,3]
[402438225,1768677092293,-500.0,0.00018082,3]
[402438226,1768677092302,-597.8010965,0.00018082,3]
[402438227,1768677092311,-862.94,0.00018082,3]
[402438228,1768677092322,-500.0,0.00018082,3]
[402438229,1768677092333,-500.0,0.00018082,3]
[402438230,1768677092342,-500.0,0.00018082,3]
[402438231,1768677092351,-824.42,0.00018082,3]
[402438232,1768677092361,-972.71,0.00018082,3]